Workbook

Sheet QS-Estimates (hidden)
C1: GEMMA CLUSTER
A3: Project Name: | C3: Template Identifier:
A4: Project ID: | C4: Effective Date:
A5: Job Name: | C5: Review Date:
A6: Job ID:
A8: Cost Estimates for Electrical Trade Qualification
A9: Item No | B9: Description | C9: Unit | D9: Duration (days) | E9: Number to be trained | F9: Cost per person per day | G9: Total Cost
A10: A | B10: Preliminaries & General
B11: Accommodation | C11: Per night | E11: 1354 | F11: R850.00 | G11: =E11*F11 -> R1,150,900.00 | H11: 535
A12: B | B12: Transport
B13: Travel | C13: Per KM | E13: 14220 | F13: R7.85 | G13: =E13*F13 -> R111,627.00
A14: C | B14: ARPL Process
B15: ARPL pre-assessment | C15: day | D15: 1 | E15: 200 | F15: R1,375.00 | G15: =D15*E15*F15 -> R275,000.00
B16: ARPL Skills Gap Training | C16: day | D16: 60 | E16: 200 | F16: R858.00 | G16: =D16*E16*F16 -> R10,296,000.00
B17: Trade Test Preparations | C17: day | D17: 20 | E17: 418 | F17: R858.00 | G17: R7,172,880.00 | I17: =E11-200 -> 1154
B18: Trade Test | C18: day | D18: 2 | E18: 418 | F18: R2,750.00 | G18: R2,299,000.00
A20: D | B20: Phase-1
A21: KM Modules | B21: Electrician
A22: 671101000-KM-01 | B22: Health, Safety, Quality and Legislation, NQF Level 4, 5 Credits. KM-01-KT01: Safety, health, environment, risk and quality principles in the workplace | C22: day | D22: 6 | E22: 106 | F22: R860.87 | G22: =D22*E22*F22 -> R547,512.05 | I22: =30*D22 -> 180
A23: 671101000-KM-02 | B23: Tools, Equipment and Materials, NQF Level 4, 8 Credits. KM-02-KT01: Hand tools and power tools (5%) KM-02-KT02: Measuring and testing instruments (50%) | C23: day | D23: 10 | E23: 106 | F23: R860.87 | G23: =D23*E23*F23 -> R912,520.08 | I23: =30*D23 -> 300
A24: 671101000-KM-03 | B24: Electricity and Electronics, NQF Level 4, 13 Credits. KM-03-KT01: Fundamentals of electricity (35%) KM-03-KT02: Electronics (30%) KM-03-KT03: Electrical principles of appliances (35%) | C24: day | D24: 16 | E24: 106 | F24: R860.87 | G24: R1,460,032.13 | I24: =30*D24 -> 480
A25: 671101000-KM-04 | B25: Industry Context, NQF Level 3, 2 Credits. KM-04-KT01: Introduction to the world of work and the electrical trade (100%) | C25: day | D25: 3 | E25: 106 | F25: R860.87 | G25: R273,756.02 | I25: 90
A26: 671101000-KM-05 | B26: Wireways and Wiring, NQF Level 4, 11 Credits. KM-05-KT01: Wire ways (35%) KM-05-KT02: Wiring of installations (35%) KM-05-KT03: Earthing and bonding (30%) | C26: day | D26: 14 | E26: 106 | F26: R860.87 | G26: R1,277,528.11 | I26: =30*D26 -> 420
A27: 671101000-KM-06 | B27: Rotating Electrical Machinery, NQF Level 4, 13 Credits. KM-06-KT01: Rotating electrical machinery - AC motors (35%) KM-06-KT02: Rotating Electrical Machinery - DC motors (35%) KM-06-KT03: Rotating electrical machinery - Alternators and Generators (30%) | C27: day | D27: 16 | E27: 106 | F27: R860.87 | G27: R1,460,032.13 | I27: 480
A28: 671101000-KM-07 | B28: Electrical Supply Systems and Components, NQF Level 4, 31 Credits. KM-07-KT01: Concepts, theories and principles of supply Systems (20%) KM-07-KT02: Batteries (10%) KM-07-KT03: Transformers (20%) KM-07-KT04: Types of cables and applications (20%) KM-07-KT05: Switchgear and control gear (20%) KM-07-KT06: Lighting systems (10%) | C28: day | D28: 39 | E28: 106 | F28: R860.87 | G28: R3,558,828.31 | I28: 1170
A29: 671101000-KM-08 | B29: Low Voltage Protection, NQF Level 4, 5 Credits. KM-08-KT01: Low voltage protection (100%) | C29: day | D29: 6 | E29: 106 | F29: R860.87 | G29: R547,512.05 | I29: 180
A30: 671101000-KM-09 | B30: Fault Finding, NQF Level 4, 3 Credits. KM-09-KT01: Fault finding (5%) | C30: day | D30: 4 | E30: 106 | F30: R860.87 | G30: R365,008.03 | I30: 120
I31: 0
A32: E | B32: Phase-2 | I32: 0
A33: PM Modules | B33: Electrician | I33: 0
A34: 671101000-PM-01 | B34: Use hand and power tools, NQF Level 3, Credits 22. PM-01-PS01: Select, use and care of engineering hand tools PM-01-PS02: Select, use and care for power tools PM-01-PS03: Select, use and care for electrical measuring instruments PM-01-PS04: Perform soldering activities PM-01-PS05: Carry out basic electric arc welding in an electrical environment PM-01-PS06: Carry out basic gas cutting in an electrical environment | C34: day | D34: 28 | E34: 218 | F34: R860.87 | G34: =D34*E34*F34 -> R5,254,750.48 | I34: 840
A35: 671101000-PM-02 | B35: Plan worksite set up for installing, wiring and connecting electrical equipment and control systems, NQF Level 3, Credits 5. PM-02-PS01: Undertake risk assessment in accordance with all statutory requirements PM-02-PS02: Read and interpret electrical drawings PM-02-PS03: Plan the worksite set-up | C35: day | D35: 6 | E35: 218 | F35: R860.87 | G35: =D35*E35*F35 -> R1,126,017.96 | I35: 180
A36: 671101000-PM-03 | B36: Prepare worksite set up for installing, wiring and connecting electrical equipment and control systems, NQF Level 3, Credits 3. PM-03-PS01: Procure resources PM-03-PS02: Prepare and transport resources PM-03-PS03: Prepare work site, equipment, tools, consumables and materials | C36: day | D36: 4 | E36: 218 | F36: R860.87 | G36: R750,678.64 | I36: 120
A37: 671101000-PM-04 | B37: Install wireways, NQF Level 4, 5 Credits. PM-04-PS01: Confirm the selection and installation method of the selected wire ways. PM-04-PS02: Use installation tools and equipment PM-04-PS03: Design and install wire ways | C37: day | D37: 6 | E37: 218 | F37: R860.87 | G37: R1,126,017.96 | I37: 180
A38: 671101000-PM-05 | B38: Install, wire and connect electrical equipment and control systems, NQF Level 4, 38 Credits. PM-05-PS01: Identify hazards within the installation PM-05-PS02: Confirm the selection and installation method of the electrical equipment and control systems PM-05-PS03: Use installation tools and personal protective equipment PM-05-PS04: Install equipment and control systems PM-05-PS05: Wire electrical equipment and control systems PM-05-PS06: Terminate and connect cables and conductors | C38: day | D38: 48 | E38: 218 | F38: R860.87 | G38: R9,008,143.68 | I38: 1440
A39: 671101000-PM-06 | B39: Conduct pre-commission inspection (power off) and test new and existing installations, NQF Level 4, 5 Credits. PM-06-PS01: Inspect electrical equipment, control systems and installations under power off conditions PM-06-PS02: Test electrical equipment, control systems and installations under power off conditions | C39: day | D39: 6 | E39: 218 | F39: R860.87 | G39: R1,126,017.96 | I39: 180
A40: 671101000-PM-07 | B40: Carry out commissioning tests, NQF Level 4, 13 Credits. PM-07-PS01: Carry out commissioning tests (with power on) on electrical installations and control systems PM-07-PS02: Rectify defects found on electrical installations and control systems PM-07-PS03: Report product deficiencies and rectify workmanship | C40: day | D40: 16 | E40: 218 | F40: R860.87 | G40: R3,002,714.56 | I40: 480
A41: 671101000-KM-08 | B41: Fault find and repair electrical control systems and electrical installations, NQF Level 4, 22 Credits. PM-08-PS01: Obtain work instructions and gather drawings and documentation PM-08-PS02: Select tools and testing instruments PM-08-PS03: Carry out fault finding PM-08-PS04: Rectify faults where applicable PM-08-PS05: Record findings and provide feedback | C41: day | D41: 28 | E41: 218 | F41: R860.87 | G41: R5,254,750.48 | I41: 840
I42: 0
A43: F | B43: Workplace modules – To be covered by the employer | I43: 0
B44: Planning and preparation process for the wiring, connection,testing, inspecting, commissioning and maintaining of electrical installations and control systems, NQF Level 4, 8 Credits. | C44: day | D44: 10 | I44: 300
B45: Processes of installing, wiring and connecting of electrical equipment and control systems, NQF Level 4, 74 Credits. | C45: day | D45: 93 | I45: 2790
B46: Processes of testing and inspecting of electrical equipment, control systems and installations, NQF Level 4, 15 Credits. | C46: day | D46: 19 | I46: 570
B47: Processes of commissioning electrical installations and control systems,NQF Level 4, 15 Credits. | C47: day | D47: 19 | I47: 570
B48: Maintenance processes for electrical installations and control systems, NQF Level 4, 44 Credits. | C48: day | D48: 55 | I48: 1650
I49: 0
B50: Total | G50: =SUM(G11:G49) -> R58,357,227.63 | I50: 0
I53: =SUM(I22:I52) -> 13560
D54: =SUM(D17:D49) -> 474
D55: =D54*30 -> 14220

Sheet BOQ For PR
D1: GEMMA CLUSTER
B3: Project Name: | D3: Template Identifier:
B4: Project ID: | D4: Effective Date:
B5: Job Name: | D5: Review Date:
D7: GEMMA CLUSTER
B9: Project Name: | D9: Template Identifier:
B10: Project ID: | D10: Effective Date:
B11: Job Name: | D11: Review Date:
B12: Job ID:
B13: Electrical Trade Qualification
B14: Item No | C14: Description | D14: Unit | E14: Duration (days) | F14: Estimated Number to be trained | G14: Cost per person per day | H14: Total Cost
B15: A | C15: Preliminaries & General
B16: A.1 | C16: Accomodation
C17: Phase 1- Accommodation for learners (include breakfast and dinner) | D17: Per night | F17: 270 | H17: =E17*F17*G17 -> 0
C18: Phase 1 - Accommodation for the technicians (include breakfast and dinner) | D18: Per night | F18: 50 | H18: =E18*F18*G18 -> 0
C19: Phase 2- Accommodation for learners (include breakfast and dinner) | D19: Per night | F19: 180 | H19: =E19*F19*G19 -> 0
C20: Phase 3 - Accommodation for learners (include breakfast and dinner) | D20: Per night | F20: 90 | H20: 0
C21: Trade Test Preparation- Accommodation for learners (include breakfast and dinner) | D21: Per night | F21: =110+75 -> 185 | H21: 0
C22: Trade Test Preparation- Accommodation for permanent employees (include breakfast and dinner) | D22: Per night | F22: =200+75 -> 275 | H22: =E22*F22*G22 -> 0
B23: A.2 | C23: Lunch
C24: Phase 1- Lunch for learners | D24: day | F24: 270 | H24: =E24*F24*G24 -> 0
C25: Phase 1- Lunch for learners | D25: day | F25: 50 | H25: =E25*F25*G25 -> 0
C26: Phase 2- Lunch for learners | D26: day | F26: 180 | H26: =E26*F26*G26 -> 0
C27: Phase 3- Lunch for learners | D27: day | F27: 90 | H27: =E27*F27*G27 -> 0
C28: Trade Test Preparation- Lunch for learners | D28: day | F28: =110+75 -> 185 | H28: 0
C29: Trade Test Preparation- Lunch for permanent employees | D29: day | F29: =200+75 -> 275 | H29: =E29*F29*G29 -> 0
B30: B | C30: Transport
C31: Phase 1-Travel for learners | D31: Per KM | F31: 540 | H31: =E31*F31*G31 -> 0
C32: Phase 1-Travel for learners | D32: Per KM | F32: 100 | H32: =E32*F32*G32 -> 0
C33: Phase 2-Travel for learners | D33: Per KM | F33: 360 | H33: =E33*F33*G33 -> 0
C34: Phase 3-Travel for learners | D34: Per KM | F34: 270 | H34: 0
C35: Phase Trade Test Preparation-Travel for learners | D35: Per KM | F35: 550 | H35: =E35*F35*G35 -> 0
B36: C | C36: Phase 1 (Year1)
C37: First Year Modules
C38: Year 1 or Phase 1 | D38: day | F38: 270 | H38: =E38*F38*G38 -> 0
C39: Year 1 or Phase 1 | D39: day | F39: 50 | H39: =E39*F39*G39 -> 0
B40: D | C40: Phase 2 (Year 2)
C41: Second Year Modules
C42: Year 2 | D42: day | F42: 200 | H42: =E42*F42*G42 -> 0
B43: E | C43: Phase 3 (Year 3)
C44: Third Year Modules
C45: Year 3 | D45: day | F45: 100 | H45: =E45*F45*G45 -> 0
B46: F | C46: ARPL Process
C47: ARPL pre-assessment for permanent employees | D47: day | F47: 200 | H47: =E47*F47*G47 -> 0
C48: ARPL Skills Gap Training for permanent employees | D48: day | F48: 200 | H48: =E48*F48*G48 -> 0
B49: G | C49: Trade Test
C50: Trade Test Preparations for both permanent employees and learners | D50: day | F50: 385 | H50: =E50*F50*G50 -> 0
C51: Trade Test for both permanent employees and learners | D51: day | F51: 385 | H51: =E51*F51*G51 -> 0
B52: H | C52: Trade Test Second Attempt
C53: Trade Test Preparations for both permanent employees and learners | D53: day | E53: 5 | F53: 150 | G53: R858.00
C54: Trade Test for both permanent employees and learners | D54: day | E54: 1 | F54: 150 | G54: R2,750.00
C55: Accomodation for both permanent employees and learners | D55: day | E55: 5 | F55: 150 | G55: R977.67
C56: Launch for Learners for both permanent employees and learners | D56: day | E56: 5 | F56: 150 | G56: R150.00
C57: Travelling for learnres | D57: Per KM | E57: 5 | F57: =(30*75) -> 2250 | G57: R7.85
B58: H | C58: Tool box
C59: Tool box set | F59: 300 | H59: =E59*F59*G59 -> 0
B60: I | C60: CoC
C61: Certificate of Compliance - Single Phase | D61: day | F61: 100 | H61: =E61*F61*G61 -> 0
C62: Certificate of Compliance - Three Phase | D62: day | F62: 50 | H62: 0
C64: Total | H64: =SUM(H17:H62) -> 0
B66: SUMMARY OF BILL OF QUANTITIES INSTITUTIONALISED TRAINING
F67: Total To be trained | G67: Price | H67: Total Price
B68: SECTION A | C68: Preliminaries & Generals | F68: - | G68: - | H68: =SUM(H17:H29) -> 0
B69: SECTION B | C69: Transport | F69: - | G69: - | H69: =SUM(H31:H35) -> 0
B70: SECTION C | C70: Phase 1 | F70: - | G70: - | H70: =SUM(H38:H39) -> 0
B71: SECTION D | C71: Phase 2 | F71: - | G71: - | H71: =SUM(H41:H42) -> 0
B72: SECTION E | C72: Phase3 | F72: - | G72: - | H72: =SUM(H44:H45) -> 0
B73: SECTION F | C73: ARPL Process | F73: - | G73: - | H73: =SUM(H47:H48) -> 0
B74: SECTION G | C74: Trade Test | F74: - | G74: - | H74: =SUM(H50:H51) -> 0
B75: SECTION H | C75: Toolbox set | F75: - | G75: - | H75: =H59 -> 0
B76: SECTION I | C76: Certificate of Compliance | F76: - | G76: - | H76: =H61+H62 -> 0
C77: Total | H77: =SUM(H68:H76) -> 0
